fUSD/lending_fUSD_20240222
["ID","MTS","AMOUNT","RATE_DAILY","PERIOD"]
[314833329,1708578655543,-1309.23,0.00035616,2]
[314833330,1708578655553,-500.0,0.00035616,2]
[314833331,1708578655563,-500.0,0.00035616,2]
[314833332,1708578655573,-500.0,0.00035616,2]
[314833333,1708578655582,-619.07,0.00035616,2]
[314833334,1708578655592,-500.0,0.00035616,2]
[314833335,1708578655602,-500.0,0.00035616,2]
[314833336,1708578655611,-500.0,0.00035616,2]
[314833337,1708578655620,-500.0,0.00035616,2]
[314833338,1708578655630,-500.0,0.00035616,2]
[314833339,1708578655639,-500.0,0.00035616,2]
[314833340,1708578655649,-500.0,0.00035616,2]
[314833341,1708578655658,-500.0,0.00035616,2]
[314833342,1708578655668,-500.0,0.00035616,2]
[314833343,1708578655677,-500.0,0.00035616,14]
[314833344,1708578655687,-602.51,0.00035616,2]
[314833345,1708578655696,-554.06794135,0.00035616,2]
[314833346,1708578655706,-500.0,0.00035616,2]
[314833347,1708578655716,-777.64,0.00035616,2]
[314833348,1708578655725,-500.0,0.00035616,2]
[314833349,1708578655735,-500.0,0.00035616,2]
[314833350,1708578655744,-681.16,0.00035616,2]
[314833351,1708578655753,-500.0,0.00035616,2]
[314833352,1708578655763,-503.0975203,0.00035616,2]
[314833353,1708578655772,-500.0,0.00035616,2]
[314833354,1708578655782,-500.0,0.00035616,2]
[314833355,1708578655793,-515.02,0.00035616,2]
[314833356,1708578655803,-500.0,0.00035616,2]
[314833357,1708578655812,-500.0,0.00035616,2]
[314833358,1708578655822,-500.0,0.00035616,2]
[314833359,1708578655831,-508.12858644,0.00035616,2]
[314833360,1708578655841,-500.0,0.00035616,2]
[314833361,1708578655850,-500.0,0.00035616,2]
[314833362,1708578655860,-1012.07,0.00035616,2]
[314833363,1708578655871,-1044.69,0.00035616,2]
[314833364,1708578655880,-609.83,0.00035616,2]
[314833365,1708578655890,-500.0,0.00035616,2]
[314833366,1708578655899,-500.0,0.00035616,2]
[314833367,1708578655908,-1053.78,0.00035616,2]
[314833368,1708578655917,-519.34928837,0.00035616,2]
[314833369,1708578655927,-502.16226662,0.00035616,2]
[314833370,1708578655936,-500.0,0.00035616,2]
[314833371,1708578655945,-500.0,0.00035616,2]
[314833372,1708578655954,-550.65,0.00035616,2]
[314833373,1708578655963,-500.0,0.00035616,2]
[314833374,1708578655972,-500.0,0.00035616,2]
[314833375,1708578655982,-500.0,0.00035616,2]
[314833376,1708578655991,-500.0,0.00035616,2]
[314833377,1708578656001,-510.86916188,0.00035616,2]
[314833378,1708578656010,-500.0,0.00035616,2]
[314833379,1708578656019,-500.0,0.00035616,2]
[314833380,1708578656029,-500.0,0.00035616,2]
[314833381,1708578656038,-500.0,0.00035616,2]
[314833382,1708578656049,-500.0,0.00035616,2]
[314833383,1708578656059,-873.89,0.00035616,2]
[314833384,1708578656068,-500.0,0.00035616,2]
[314833385,1708578656078,-769.06,0.00035616,2]
[314833386,1708578656087,-500.0,0.00035616,2]
[314833387,1708578656096,-1178.41,0.00035616,2]
[314833388,1708578656106,-500.0,0.00035616,2]
[314833389,1708578656115,-500.0,0.00035616,2]
[314833390,1708578656125,-504.09397833,0.00035616,2]
[314833391,1708578656134,-500.0,0.00035616,2]
[314833392,1708578656144,-500.0,0.00035616,2]
[314833393,1708578656153,-500.0,0.00035616,2]
[314833394,1708578656163,-500.0,0.00035616,2]
[314833395,1708578656172,-500.0,0.00035616,2]
[314833396,1708578656182,-506.14159084,0.00035616,2]
[314833397,1708578656191,-500.0,0.00035616,2]
[314833398,1708578656201,-500.0,0.00035616,2]
[314833399,1708578656211,-500.0,0.00035616,2]
[314833400,1708578656220,-500.0,0.00035616,2]
[314833401,1708578656230,-1488.71,0.00035616,2]
[314833402,1708578656240,-23062.47,0.00035616,2]
[314833403,1708578656249,-570.31,0.00035616,2]
[314833404,1708578656259,-500.0,0.00035616,2]
[314833405,1708578656269,-537.75,0.00035616,2]
[314833406,1708578656604,-500.0,0.00035616,2]
[314833407,1708578656615,-500.0,0.00035616,2]
[314833408,1708578656625,-500.0,0.00035616,2]
[314833409,1708578656635,-500.0,0.00035616,2]
[314833410,1708578656644,-500.0,0.00035616,2]
[314833411,1708578656654,-500.0,0.00035616,2]
[314833412,1708578656664,-500.0,0.00035616,2]
[314833413,1708578656674,-500.0,0.00035616,2]
[314833414,1708578656685,-500.0,0.00035616,2]
[314833415,1708578656694,-500.0,0.00035616,2]
[314833416,1708578656704,-500.0,0.00035616,2]
[314833417,1708578656713,-500.0,0.00035616,2]
[314833418,1708578656723,-1265.01,0.00035616,2]
[314833419,1708578656733,-1311.43,0.00035616,2]
[314833420,1708578656743,-500.0,0.00035616,2]
[314833421,1708578656752,-1290.81,0.00035616,2]
[314833422,1708578656762,-524.8661905,0.00035616,2]
[314833423,1708578656771,-500.0,0.00035616,2]
[314833424,1708578656781,-500.0,0.00035616,2]
[314833425,1708578656794,-500.0,0.00035616,2]
[314833426,1708578656804,-900.98,0.00035616,2]
[314833427,1708578656813,-500.0,0.00035616,2]
[314833428,1708578656823,-500.0,0.00035616,2]
[314833429,1708578656833,-500.0,0.00035616,2]
[314833430,1708578656842,-500.0,0.00035616,2]
[314833431,1708578656852,-500.0,0.00035616,2]
[314833432,1708578656862,-500.0,0.00035616,2]
[314833433,1708578656872,-500.0,0.00035616,2]
[314833434,1708578656881,-500.0,0.00035616,2]
[314833435,1708578656891,-1481.34,0.00035616,2]
[314833436,1708578656901,-500.0,0.00035616,2]
[314833437,1708578656910,-500.0,0.00035616,2]
[314833438,1708578656919,-1286.83,0.00035616,2]
[314833439,1708578656929,-500.0,0.00035616,2]
[314833440,1708578656938,-500.0,0.00035616,2]
[314833441,1708578656948,-500.0,0.00035616,2]
[314833442,1708578656957,-150.0,0.00035616,2]
[314833443,1708578656967,-1033.35,0.00035616,2]
[314833444,1708578656976,-998.09,0.00035616,2]
[314833445,1708578656985,-500.0,0.00035616,2]
[314833446,1708578656995,-1761.19,0.00035616,2]
[314833447,1708578657004,-500.0,0.00035616,2]
[314833448,1708578657013,-500.0,0.00035616,2]
[314833449,1708578657022,-1438.97,0.00035616,2]
[314833450,1708578657032,-500.0,0.00035616,2]
[314833451,1708578657041,-500.0,0.00035616,2]
[314833452,1708578657050,-500.0,0.00035616,2]
[314833453,1708578657060,-500.0,0.00035616,2]
[314833454,1708578657069,-500.0,0.00035616,2]
[314833455,1708578657079,-500.0,0.00035616,2]
[314833456,1708578657088,-500.0,0.00035616,2]
[314833457,1708578657097,-500.0,0.00035616,2]
[314833458,1708578657107,-500.0,0.00035616,2]
[314833459,1708578657116,-512.64647934,0.00035616,2]
[314833460,1708578657125,-500.0,0.00035616,2]
[314833461,1708578657134,-946.94,0.00035616,2]
[314833462,1708578657144,-1147.45,0.00035616,2]
[314833463,1708578657153,-859.36,0.00035616,2]
[314833464,1708578657163,-500.0,0.00035616,2]
[314833465,1708578657172,-500.0,0.00035616,2]
[314833466,1708578657182,-500.0,0.00035616,2]
[314833467,1708578657191,-5000.0,0.00035616,2]
[314833468,1708578657201,-2318.43,0.00035616,2]
[314833469,1708578657210,-500.0,0.00035616,2]
[314833470,1708578657219,-500.0,0.00035616,2]
[314833471,1708578657229,-633.91,0.00035616,2]
[314833472,1708578657239,-500.0,0.00035616,2]
[314833473,1708578657248,-500.0,0.00035616,2]
[314833474,1708578657257,-500.0,0.00035616,2]
[314833475,1708578657267,-986.39,0.00035616,2]
[314833476,1708578657276,-500.0,0.00035616,2]
[314833477,1708578657286,-500.0,0.00035616,2]
[314833478,1708578657295,-500.0,0.00035616,2]
[314833479,1708578657304,-500.0,0.00035616,2]
[314833480,1708578657314,-500.0,0.00035616,2]
[314833481,1708578657323,-500.0,0.00035616,2]
[314833482,1708578657332,-500.0,0.00035616,2]
[314833483,1708578657341,-871.1,0.00035616,2]
[314833484,1708578657350,-500.0,0.00035616,2]
[314833485,1708578657360,-500.0,0.00035616,2]
[314833486,1708578657369,-500.0,0.00035616,2]
[314833487,1708578657379,-4027.41,0.00035616,2]
[314833488,1708578657388,-500.0,0.00035616,2]
[314833489,1708578657397,-500.0,0.00035616,2]
[314833490,1708578657406,-500.0,0.00035616,2]
[314833491,1708578657416,-500.0,0.00035616,2]
[314833492,1708578657425,-500.0,0.00035616,2]
[314833493,1708578657434,-500.0,0.00035616,2]
[314833494,1708578657443,-781.98,0.00035616,2]
[314833495,1708578657453,-500.0,0.00035616,2]
[314833496,1708578657462,-500.0,0.00035616,2]
[314833497,1708578657472,-500.0,0.00035616,2]
[314833498,1708578657481,-500.0,0.00035616,2]
[314833499,1708578657491,-500.0,0.00035616,2]
[314833500,1708578657500,-500.0,0.00035616,2]
[314833501,1708578657509,-6247.91,0.00035616,2]
[314833502,1708578657518,-4691.34550195,0.00035616,2]
[314833503,1708578658253,-943.70449805,0.00035616,2]
[314833504,1708578658262,-6247.91,0.00035616,2]
[314833505,1708578658272,-500.0,0.00035616,2]
[314833506,1708578658281,-500.0,0.00035616,2]
[314833507,1708578658290,-500.0,0.00035616,2]
[314833508,1708578658300,-6247.91,0.00035616,2]
[314833509,1708578658309,-500.0,0.00035616,2]
[314833510,1708578658318,-6247.91,0.00035616,2]
[314833511,1708578658327,-663.36,0.00035616,2]
[314833512,1708578658336,-500.0,0.00035616,2]
[314833513,1708578658346,-500.0,0.00035616,2]
[314833514,1708578658355,-6247.91,0.00035616,2]
[314833515,1708578658365,-500.0,0.00035616,2]
[314833516,1708578658375,-6247.91,0.00035616,2]
[314833517,1708578658385,-500.0,0.00035616,2]
[314833518,1708578658394,-6247.91,0.00035616,2]
[314833519,1708578658403,-500.0,0.00035616,2]
[314833520,1708578658413,-500.0,0.00035616,2]
[314833521,1708578658423,-500.0,0.00035616,2]
[314833522,1708578658433,-6247.91,0.00035616,2]
[314833523,1708578658442,-500.0,0.00035616,2]
[314833524,1708578658451,-508.14427686,0.00035616,2]
[314833525,1708578658461,-6247.91,0.00035616,2]
[314833526,1708578658471,-548.46409271,0.00035616,2]
[314833527,1708578658481,-6247.91,0.00035616,2]
[314833528,1708578658490,-6247.91,0.00035616,2]
[314833529,1708578658499,-6247.91,0.00035616,2]
[314833530,1708578658510,-6247.91,0.00035616,2]
[314833531,1708578658519,-951.08,0.00035616,2]
[314833532,1708578658528,-1081.44,0.00035616,2]
[314833533,1708578658537,-6247.91,0.00035616,2]
[314833534,1708578658547,-6247.91,0.00035616,2]
[314833535,1708578658557,-500.0,0.00035616,2]
[314833536,1708578658566,-6247.91,0.00035616,2]
[314833537,1708578658576,-500.0,0.00035616,2]
[314833538,1708578658586,-4965.52,0.00035616,2]
[314833539,1708578658596,-6247.91,0.00035616,2]
[314833540,1708578658606,-500.0,0.00035616,2]
[314833541,1708578658615,-500.0,0.00035616,2]
[314833542,1708578658624,-6247.91,0.00035616,2]
[314833543,1708578658634,-6247.91,0.00035616,2]
[314833544,1708578658643,-544.10048637,0.00035616,2]
[314833545,1708578658652,-500.0,0.00035616,2]
[314833546,1708578658661,-6247.91,0.00035616,2]
[314833547,1708578658671,-500.0,0.00035616,2]
[314833548,1708578658680,-1246.72,0.00035616,2]
[314833549,1708578658690,-6247.91,0.00035616,2]
[314833550,1708578658699,-6247.91,0.00035616,2]
[314833551,1708578658709,-6247.91,0.00035616,2]
[314833552,1708578658718,-1615.5,0.00035616,2]
[314833553,1708578658728,-500.0,0.00035616,2]
[314833554,1708578658737,-6248.12300003,0.00035616,2]
[314833555,1708578658747,-500.0,0.00035616,2]
[314833556,1708578658859,-500.0,0.00035616,2]
[314833557,1708578658869,-1415.3,0.00035616,2]
[314833558,1708578658879,-500.0,0.00035616,10]
[314833559,1708578658888,-500.0,0.00035616,2]
[314833560,1708578658897,-500.0,0.00035616,2]
[314833561,1708578658906,-500.0,0.00035616,2]
[314833562,1708578658915,-500.0,0.00035616,2]
[314833563,1708578658924,-500.0,0.00035616,2]
[314833564,1708578658933,-500.0,0.00035616,2]
[314833565,1708578658942,-500.0,0.00035616,2]
[314833566,1708578658951,-500.0,0.00035616,2]
[314833567,1708578658961,-737.87,0.00035616,2]
[314833568,1708578658970,-5720.58,0.00035616,2]
[314833569,1708578658978,-684.37,0.00035616,2]
[314833570,1708578658987,-500.0,0.00035616,2]
[314833571,1708578658996,-500.0,0.00035616,2]
[314833572,1708578659005,-500.0,0.00035616,2]
[314833573,1708578659014,-500.0,0.00035616,2]
[314833574,1708578659023,-3340.85,0.00035616,2]
[314833575,1708578659032,-670.1,0.00035616,2]
[314833576,1708578659041,-1189.55,0.00035616,2]
[314833577,1708578659050,-500.0,0.00035616,2]
[314833578,1708578659059,-500.0,0.00035616,2]
[314833579,1708578659068,-510.19147109,0.00035616,2]
[314833580,1708578659077,-1434.33,0.00035616,2]
[314833581,1708578659086,-951.61,0.00035616,2]
[314833582,1708578659095,-506.1999124,0.00035616,2]
[314833583,1708578659105,-500.0,0.00035616,2]
[314833584,1708578659114,-500.0,0.00035616,2]
[314833585,1708578659123,-500.0,0.00035616,2]
[314833586,1708578659132,-506.82024109,0.00035616,2]
[314833587,1708578659141,-500.0,0.00035616,2]
[314833588,1708578659151,-500.0,0.00035616,2]
[314833589,1708578659161,-500.0,0.00035616,2]
[314833590,1708578659170,-500.0,0.00035616,2]
[314833591,1708578659179,-500.0,0.00035616,2]
[314833592,1708578659188,-500.0,0.00035616,2]
[314833593,1708578659197,-500.0,0.00035616,2]
[314833594,1708578659206,-2989.2,0.00035616,2]
[314833595,1708578659215,-592.37335006,0.00035616,2]
[314833596,1708578659224,-3730.63,0.00035616,2]
[314833597,1708578659233,-500.0,0.00035616,2]
[314833598,1708578659242,-500.0,0.00035616,2]
[314833599,1708578659252,-500.0,0.00035616,2]
[314833600,1708578659261,-500.0,0.00035616,2]
[314833601,1708578659269,-500.0,0.00035616,2]
[314833602,1708578659278,-500.0,0.00035616,2]
[314833603,1708578659287,-500.0,0.00035616,2]
[314833604,1708578659297,-500.0,0.00035616,2]
[314833605,1708578659306,-500.0,0.00035616,2]
[314833606,1708578659315,-1254.78,0.00035616,2]
[314833607,1708578659323,-522.4,0.00035616,2]
[314833608,1708578659333,-529.98,0.00035616,2]
[314833609,1708578659342,-500.0,0.00035616,2]
[314833610,1708578659351,-500.0,0.00035616,2]
[314833611,1708578659361,-3058.78,0.00035616,2]
[314833612,1708578659370,-500.0,0.00035616,2]
[314833613,1708578659378,-500.0,0.00035616,2]
[314833614,1708578659388,-500.0,0.00035616,2]
[314833615,1708578659398,-500.0,0.00035616,2]
[314833616,1708578659407,-500.0,0.00035616,2]
[314833617,1708578659416,-768.78,0.00035616,2]
[314833618,1708578659425,-500.0,0.00035616,2]
[314833619,1708578659435,-7098.85,0.00035616,2]
[314833620,1708578659444,-1223.76,0.00035616,2]
[314833621,1708578659453,-500.0,0.00035616,2]
[314833622,1708578659463,-511.26864956,0.00035616,2]
[314833623,1708578659472,-2492.43,0.00035616,2]
[314833624,1708578659481,-500.0,0.00035616,2]
[314833625,1708578659491,-500.0,0.00035616,2]
[314833626,1708578659500,-500.0,0.00035616,2]
[314833627,1708578659509,-500.0,0.00035616,2]
[314833628,1708578659519,-500.0,0.00035616,2]
[314833629,1708578659528,-500.0,0.00035616,2]
[314833630,1708578659538,-500.0,0.00035616,2]
[314833631,1708578659548,-1231.56,0.00035616,2]
[314833632,1708578659558,-1484.87,0.00035616,2]
[314833633,1708578659568,-500.0,0.00035616,2]
[314833634,1708578659577,-503.10622702,0.00035616,2]
[314833635,1708578659587,-500.0,0.00035616,2]
[314833636,1708578659597,-1975.42,0.00035616,2]
[314833637,1708578659608,-500.0,0.00035616,2]
[314833638,1708578659618,-500.0,0.00035616,2]
[314833639,1708578659627,-952.36,0.00035616,2]
[314833640,1708578659637,-500.0,0.00035616,2]
[314833641,1708578659647,-500.0,0.00035616,2]
[314833642,1708578659656,-500.0,0.00035616,2]
[314833643,1708578659666,-2918.68,0.00035616,2]
[314833644,1708578659675,-500.0,0.00035616,2]
[314833645,1708578659684,-500.0,0.00035616,2]
[314833646,1708578659694,-13850.77283605,0.00035616,2]
[314833647,1708578659777,-3687.46473616,0.00035616,2]
[314833648,1708578659821,-468.50164004,0.00035616,2]
[314833649,1708578659834,-1916.41189195,0.00035616,2]
[314833650,1708578659845,-1083.24875629,0.00035616,2]
[314833651,1708578659860,-1508.61686169,0.00035616,2]
[314833652,1708578659872,-26295.13327782,0.00035616,2]
[314833653,1708578659882,-500.0,0.00035616,2]
[314833654,1708578659892,-500.0,0.00035616,2]
[314833655,1708578659901,-4858.92,0.00035616,2]
[314833656,1708578659910,-500.0,0.00035616,2]
[314833657,1708578659919,-7309.70746158,0.00035616,2]
[314833658,1708578659931,-1472.54253842,0.00035616,2]
[314833659,1708578659940,-500.0,0.00035616,2]
[314833660,1708578659950,-508.25570105,0.00035616,2]
[314833661,1708578659959,-3081.23,0.00035616,2]
[314833662,1708578659969,-500.0,0.00035616,2]
[314833663,1708578659978,-500.0,0.00035616,2]
[314833664,1708578659987,-500.0,0.00035616,2]
[314833665,1708578659996,-500.0,0.00035616,2]
[314833666,1708578660006,-500.0,0.00035616,2]
[314833667,1708578660015,-500.0,0.00035616,2]
[314833668,1708578660025,-1157.87,0.00035616,2]
[314833669,1708578660034,-500.0,0.00035616,2]
[314833670,1708578660043,-500.0,0.00035616,2]
[314833671,1708578660053,-500.0,0.00035616,2]
[314833672,1708578660063,-500.0,0.00035616,2]
[314833673,1708578660072,-500.0,0.00035616,2]
[314833674,1708578660081,-500.0,0.00035616,2]
[314833675,1708578660090,-500.0,0.00035616,2]
[314833676,1708578660100,-500.0,0.00035616,2]
[314833677,1708578660109,-1526.34,0.00035616,2]
[314833678,1708578660118,-500.0,0.00035616,2]
[314833679,1708578660128,-500.0,0.00035616,2]
[314833680,1708578660138,-500.0,0.00035616,2]
[314833681,1708578660148,-500.0,0.00035616,2]
[314833682,1708578660157,-801.22,0.00035616,2]
[314833683,1708578660167,-500.0,0.00035616,2]
[314833684,1708578660176,-500.0,0.00035616,2]
[314833685,1708578660186,-500.0,0.00035616,2]
[314833686,1708578660195,-500.0,0.00035616,2]
[314833687,1708578660204,-500.0,0.00035616,2]
[314833688,1708578660214,-500.0,0.00035616,2]
[314833689,1708578660223,-180.9,0.00035616,2]
[314833690,1708578660233,-1114.3,0.00035616,2]
[314833691,1708578660242,-500.0,0.00035616,2]
[314833692,1708578660252,-501.28928603,0.00035616,2]
[314833693,1708578660262,-15612.4,0.00035616,2]
[314833694,1708578660272,-500.0,0.00035616,2]
[314833695,1708578660282,-500.0,0.00035616,2]
[314833696,1708578660293,-10234.41845396,0.00035616,2]
[314833697,1708578660749,-173.14,0.00030407,2]
[314833698,1708578660759,-1362.74154604,0.00035616,2]
[314833699,1708578660769,-500.0,0.00035616,2]
[314833700,1708578660778,-500.0,0.00035616,2]
[314833701,1708578660788,-214.62855148,0.00035616,2]
[314833702,1708578660802,-499.33144852,0.00035616,2]
[314833703,1708578660811,-654.22343006,0.00035616,2]
[314833704,1708578661664,-173.14,0.00031988,2]
[314833705,1708578661674,-198.23875418,0.000348,2]
[314833706,1708578661684,-271.27352765,0.00035616,2]
[314833707,1708578661696,-1153.31304229,0.00035616,2]
[314833708,1708578661706,-500.0,0.00035616,2]
[314833709,1708578661715,-357.64584966,0.00035616,2]
[314833710,1708578661741,-147.84623207,0.00035616,2]
[314833711,1708578661750,-179.93965511,0.00035616,2]
[314833712,1708578661762,-320.06034489,0.00035616,2]
[314833713,1708578661771,-500.0,0.00035616,2]
[314833714,1708578661781,-175.87459261,0.00035616,2]
[314833715,1708578661805,-324.12540739,0.00035616,2]
[314833716,1708578661814,-500.0,0.00035616,2]
[314833717,1708578661823,-500.0,0.00035616,2]
[314833718,1708578661834,-500.0,0.00035616,2]
[314833719,1708578661843,-1876.12,0.00035616,2]
[314833720,1708578661853,-500.0,0.00035616,2]
[314833721,1708578661863,-11949.21,0.00035616,2]
[314833722,1708578661873,-500.0,0.00035616,2]
[314833723,1708578661883,-500.0,0.00035616,2]
[314833724,1708578661893,-2963.4,0.00035616,2]
[314833725,1708578661902,-500.0,0.00035616,2]
[314833726,1708578661911,-500.0,0.00035616,2]
[314833727,1708578661920,-4630.14459261,0.00035616,2]
[314833728,1708578661933,-727.3013015,0.00035616,2]
[314833729,1708578661945,-4264.80410589,0.00035616,2]
[314833730,1708578661954,-987.87,0.00035616,2]
[314833731,1708578661964,-1149.32,0.00035616,2]
[314833732,1708578661973,-500.0,0.00035616,2]
[314833733,1708578661982,-500.0,0.00035616,2]
[314833734,1708578661992,-327.10495717,0.00035616,2]
[314833735,1708578662004,-429.54504283,0.00035616,2]
[314833736,1708578662014,-500.0,0.00035616,2]
[314833737,1708578662023,-52.19825324,0.00035616,2]
[314833738,1708578663278,-812.17174676,0.00035616,2]
[314833739,1708578663288,-1083.49815887,0.00035616,2]
[314833740,1708578663377,-347.44581063,0.00035616,2]
[314833741,1708578663389,-563.1960305,0.00035616,2]
[314833742,1708578663399,-500.0,0.00035616,2]
[314833743,1708578663410,-500.0,0.00035616,2]
[314833744,1708578663419,-445.69924659,0.00035616,2]
[314833745,1708578663445,-4675.74075341,0.00035616,2]
[314833746,1708578663454,-283.49598534,0.00035616,2]
[314833747,1708578663464,-557.01543021,0.00035616,2]
[314833748,1708578663473,-500.0,0.00035616,2]
[314833749,1708578663483,-500.0,0.00035616,2]
[314833750,1708578663494,-564.24,0.00035616,2]
[314833751,1708578663506,-500.0,0.00035616,2]
[314833752,1708578663516,-3186.11,0.00035616,2]
[314833753,1708578663526,-500.0,0.00035616,2]
[314833754,1708578663536,-501.08829304,0.00035616,2]
[314833755,1708578663547,-500.0,0.00035616,2]
[314833756,1708578663557,-706.64,0.00035616,2]
[314833757,1708578663568,-502.91,0.00035616,2]
[314833758,1708578663578,-500.0,0.00035616,2]
[314833759,1708578663588,-500.0,0.00035616,2]
[314833760,1708578663597,-500.0,0.00035616,2]
[314833761,1708578663607,-500.0,0.00035616,2]
[314833762,1708578663618,-500.0,0.00035616,2]
[314833763,1708578663629,-500.0,0.00035616,2]
[314833764,1708578663639,-500.0,0.00035616,2]
[314833765,1708578663648,-500.0,0.00035616,2]
[314833766,1708578663659,-509.97,0.00035616,2]
[314833767,1708578663669,-500.0,0.00035616,2]
[314833768,1708578663678,-500.0,0.00035616,2]
[314833769,1708578663689,-500.0,0.00035616,2]
[314833770,1708578663698,-4710.67,0.00035616,2]
[314833771,1708578663708,-2974.7,0.00035616,2]
[314833772,1708578663718,-500.0,0.00035616,2]
[314833773,1708578663728,-500.0,0.00035616,2]
[314833774,1708578663738,-500.0,0.00035616,2]
[314833775,1708578663748,-500.0,0.00035616,2]
[314833776,1708578663758,-500.0,0.00035616,2]
[314833777,1708578663768,-500.0,0.00035616,2]
[314833778,1708578663777,-500.0,0.00035616,2]
[314833779,1708578663790,-500.0,0.00035616,2]
[314833780,1708578663800,-500.0,0.00035616,2]
[314833781,1708578663810,-513.91674693,0.00035616,2]
[314833782,1708578663820,-500.0,0.00035616,2]
[314833783,1708578663830,-532.14,0.00035616,2]
[314833784,1708578663920,-549.8380393,0.00035616,2]
[314833785,1708578663936,-959.77,0.00035616,2]
[314833786,1708578663945,-500.0,0.00035616,2]
[314833787,1708578663956,-500.0,0.00035616,2]
[314833788,1708578663965,-500.0,0.00035616,2]
[314833789,1708578663975,-500.0,0.00035616,2]
[314833790,1708578663984,-622.76,0.00035616,2]
[314833791,1708578663993,-743.83,0.00035616,2]
[314833792,1708578664003,-8969.89,0.00035616,2]
[314833793,1708578664012,-500.0,0.00035616,2]
[314833794,1708578664022,-572.5297433,0.00035616,2]
[314833795,1708578664031,-10379.63,0.00035616,2]
[314833796,1708578664041,-500.0,0.00035616,2]
[314833797,1708578664050,-500.0,0.00035616,2]
[314833798,1708578664059,-500.0,0.00035616,2]
[314833799,1708578664069,-293.92516821,0.00035616,2]
[314833800,1708578664079,-500.0,0.00035616,2]
[314833801,1708578664089,-500.0,0.00035616,2]
[314833802,1708578664098,-1256.1,0.00035616,2]
[314833803,1708578664108,-1406.03,0.00035616,2]
[314833804,1708578664120,-3083.77,0.00035616,2]
[314833805,1708578664130,-23285.5,0.00035616,2]
[314833806,1708578664139,-524.46,0.00035616,2]
[314833807,1708578664149,-500.0,0.00035616,2]
[314833808,1708578664159,-500.0,0.00035616,2]
[314833809,1708578664169,-502.07534894,0.00035616,2]
[314833810,1708578664178,-213.73532612,0.00035616,2]
[314833811,1708578664188,-500.0,0.00035616,2]
[314833812,1708578664197,-816.02,0.00035616,2]
[314833813,1708578664207,-518.88,0.00035616,2]
[314833814,1708578664216,-500.0,0.00035616,2]
[314833815,1708578664225,-1810.35,0.00035616,2]
[314833816,1708578664235,-500.0,0.00035616,2]
[314833817,1708578664245,-500.0,0.00035616,2]
[314833818,1708578664254,-500.0,0.00035616,2]
[314833819,1708578664264,-765.37,0.00035616,2]
[314833820,1708578664273,-500.0,0.00035616,2]
[314833821,1708578664283,-500.0,0.00035616,2]
[314833822,1708578664293,-500.0,0.00035616,2]
[314833823,1708578664303,-500.0,0.00035616,2]
[314833824,1708578664312,-1239.0,0.00035616,2]
[314833825,1708578664322,-500.0,0.00035616,2]
[314833826,1708578664333,-500.0,0.00035616,2]
[314833827,1708578664342,-500.0,0.00035616,2]
[314833828,1708578664352,-997.72,0.00035616,2]